bitfinex/quotes_SOLUSD_20240623
["timestamp","ask_amount","ask_price","bid_price","bid_amount"]
[1719117931227,20.0,134.87,134.83,6.49]
[1719117931228,27.4145,134.87,134.83,6.49]
[1719117931436,27.4145,134.87,134.8,100.0]
[1719117931741,33.9047,134.87,134.82,6.49]
[1719117934140,26.49,134.87,134.82,6.49]
[1719117934465,20.0,134.87,134.83,6.49]
[1719117939275,27.4145,134.87,134.83,6.49]
[1719117942874,33.9045,134.87,134.82,6.49]
[1719117945464,26.49,134.87,134.82,6.49]
[1719117945965,26.49,134.87,134.8,100.0]
[1719117946181,26.49,134.87,134.82,6.49]
[1719117948485,26.49,134.87,134.8,100.0]
[1719117948690,26.49,134.87,134.82,6.49]
[1719117951358,20.0,134.87,134.83,6.49]
[1719117952567,20.0,134.87,134.8,100.0]
[1719117952867,20.0,134.87,134.83,6.49]
[1719117958590,27.4146,134.87,134.83,6.49]
[1719117961372,7.4159,134.85,134.79,0.7631863]
[1719117961582,13.9059,134.85,134.8,6.49]
[1719117963294,6.49,134.85,134.8,6.49]
[1719117963793,12.6282,134.86,134.81,6.49]
[1719117963992,20.0,134.85,134.82,6.49]
[1719117965376,20.0,134.85,134.81,6.49]
[1719117971177,20.0,134.85,134.8,6.49]
[1719117971483,26.49,134.85,134.8,6.49]
[1719117972076,20.0,134.85,134.81,6.49]
[1719117974920,23.1083,134.84,134.79,7.2531863]
[1719117976106,16.6183,134.84,134.8,6.49]
[1719117977524,16.6183,134.84,134.81,6.49]
[1719117980492,16.6183,134.84,134.81,18.35638028]
[1719117983524,20.0,134.85,134.81,18.35638028]
[1719117983688,30.19812145,134.88,134.83,6.49]
[1719117983901,20.0,134.87,134.83,6.49]
[1719117985423,20.0,134.87,134.84,1.48225945]
[1719117987641,20.0,134.87,134.84,7.97225945]
[1719117987843,20.0,134.87,134.85,6.49]
[1719117988222,27.4146,134.87,134.82,100.0]
[1719117988541,20.0,134.87,134.85,6.49]
[1719117993122,27.4146,134.87,134.84,6.49]
[1719117993743,20.0,134.87,134.84,6.49]
[1719117993957,15.0496,134.88,134.84,106.49]
[1719117994122,15.0496,134.92,134.84,100.0]
[1719117994319,27.4124,134.91,134.87,6.49]
[1719117996531,27.4124,134.91,134.88,6.49]
[1719117999963,20.0,134.91,134.88,6.49]
[1719118000128,15.0496,134.92,134.89,7.01932489]
[1719118000329,15.0496,134.92,134.89,6.49]
[1719118001547,22.4613,134.92,134.89,6.49]
[1719118002244,22.4613,134.92,134.88,6.49]
[1719118002449,22.4613,134.92,134.89,0.5292464]
[1719118002846,22.4613,134.92,134.88,6.49]
[1719118005433,28.9513,134.92,134.87,6.49]
[1719118007968,21.5396,134.92,134.87,6.49]
[1719118011371,21.5396,134.92,134.86,100.0]
[1719118011540,15.0496,134.92,134.87,6.49]
[1719118013374,15.0496,134.92,134.86,100.0]
[1719118013545,15.0496,134.92,134.87,6.49]
[1719118015279,15.0496,134.92,134.89,6.49]
[1719118024855,15.0496,134.92,134.88,6.49]
[1719118026952,15.0496,134.92,134.88,106.49]
[1719118027176,15.0496,134.92,134.89,6.49]
[1719118029164,15.0496,134.92,134.86,100.0]
[1719118029385,15.0496,134.92,134.88,6.49]
[1719118030284,15.0496,134.92,134.86,100.0]
[1719118030466,15.0496,134.92,134.88,6.49]
[1719118030664,15.0496,134.92,134.86,100.0]
[1719118030864,15.0496,134.92,134.88,6.49]
[1719118031780,15.0496,134.92,134.87,6.49]
[1719118034688,15.0496,134.92,134.88,6.49]
[1719118035589,15.0496,134.92,134.84,100.0]
[1719118035773,15.0496,134.92,134.82,15.0553]
[1719118035774,6.49,134.89,134.82,100.0]
[1719118036083,6.49,134.89,134.84,6.49]
[1719118036271,6.49,134.88,134.82,100.0]
[1719118036480,6.49,134.88,134.83,6.49]
[1719118037478,6.49,134.88,134.8,100.0]
[1719118037681,6.49,134.88,134.83,6.49]
[1719118042189,6.49,134.89,134.84,6.49]
[1719118043301,21.9076,134.9,134.85,6.49]
[1719118043501,20.0,134.89,134.85,6.49]
[1719118048516,26.49,134.89,134.82,100.0]
[1719118048811,26.49,134.89,134.84,6.49]
[1719118049195,6.49,134.88,134.83,6.49]
[1719118049588,20.0,134.89,134.84,6.49]
[1719118049589,26.49,134.89,134.84,6.49]
[1719118050594,26.49,134.89,134.82,100.0]
[1719118050810,33.9034,134.89,134.83,6.49]
[1719118051610,26.49,134.89,134.83,6.49]
[1719118052014,6.49,134.88,134.83,6.49]
[1719118052319,6.49,134.87,134.82,100.0]
[1719118052491,6.49,134.87,134.82,106.49]
[1719118054202,12.5236,134.88,134.83,6.49]
[1719118057323,12.5236,134.88,134.82,100.0]
[1719118057496,12.5236,134.88,134.83,6.49]
[1719118059824,12.5236,134.88,134.82,100.0]
[1719118060017,12.5236,134.88,134.83,6.49]
[1719118060822,6.0336,134.88,134.83,6.49]
[1719118061022,12.5236,134.88,134.83,6.49]
[1719118072504,12.5236,134.88,134.82,100.0]
[1719118072830,16.2605,134.86,134.81,6.49]
[1719118073123,22.7505,134.86,134.81,6.49]
[1719118078534,16.2605,134.86,134.82,6.49]
[1719118079734,22.7505,134.86,134.81,6.49]
[1719118079935,16.2605,134.86,134.81,106.49]
[1719118080114,16.2605,134.86,134.83,6.49]
[1719118080434,16.2605,134.86,134.81,100.0]
[1719118080646,16.2605,134.86,134.83,6.49]
[1719118082519,6.0336,134.88,134.84,6.49]
[1719118082830,36.2605,134.89,134.84,6.49]
[1719118083231,36.2605,134.89,134.85,7.78175479]
[1719118083611,36.2605,134.89,134.85,6.49]
[1719118084332,6.111,134.91,134.86,1.29229367]
[1719118084538,13.5236,134.91,134.86,6.49]
[1719118084716,20.0,134.9,134.86,6.49]
[1719118084911,27.4129,134.9,134.86,6.49]
[1719118088931,27.4129,134.9,134.83,100.0]
[1719118089147,33.9029,134.9,134.85,6.49]
[1719118090335,13.9035,134.89,134.84,6.49]
[1719118091343,6.49,134.89,134.84,6.49]
[1719118093637,26.49,134.9,134.85,6.49]
[1719118098840,33.9029,134.9,134.85,6.49]
[1719118101235,6.49,134.89,134.84,6.49]
[1719118102246,33.9029,134.9,134.85,6.49]
[1719118103345,6.49,134.89,134.84,6.49]
[1719118104234,33.9029,134.9,134.85,6.49]
[1719118107436,20.0,134.9,134.85,100.0]
[1719118107667,23.6297454,134.92,134.88,6.49]
[1719118107960,15.8892,134.92,134.88,6.49]
[1719118109126,15.8892,134.92,134.89,2.71502107]
[1719118109330,15.8892,134.92,134.88,6.49]
[1719118109562,15.8892,134.92,134.89,2.71925655]
[1719118110235,15.8892,134.92,134.88,6.49]
[1719118111337,7.4109,134.94,134.9,6.49]
[1719118111751,20.0,134.93,134.9,6.49]
[1719118117941,7.4109,134.94,134.9,6.49]
[1719118120666,7.4112,134.93,134.89,6.49]
[1719118125265,7.4109,134.94,134.89,6.49]
[1719118126147,7.4109,134.94,134.9,6.49]
[1719118127771,13.9009,134.94,134.89,6.49]
[1719118130045,6.49,134.94,134.89,6.49]
[1719118135990,6.49,134.94,134.88,100.0]
[1719118135991,6.49,134.93,134.86,100.0]
[1719118136178,6.49,134.93,134.88,6.49]
[1719118136474,13.9016,134.93,134.88,6.49]
[1719118136668,6.49,134.92,134.87,6.49]
[1719118138382,6.49,134.92,134.86,100.0]
[1719118138582,6.49,134.92,134.87,6.49]
[1719118140662,6.49,134.92,134.86,106.49]
[1719118140990,6.49,134.91,134.86,106.49]
[1719118141164,6.49,134.91,134.84,115.1433]
[1719118141366,6.49,134.91,134.85,6.49]
[1719118141681,6.49,134.91,134.84,6.49]
[1719118141682,6.49,134.89,134.84,6.49]
[1719118142888,6.49,134.89,134.84,106.49]
[1719118143195,6.49,134.9,134.85,6.49]
[1719118147789,6.49,134.9,134.84,100.0]
[1719118150301,6.49,134.9,134.85,6.49]
[1719118151332,6.49,134.9,134.84,100.0]
[1719118151605,6.49,134.9,134.85,6.49]
[1719118152299,6.49,134.89,134.84,6.49]
[1719118154496,6.49,134.89,134.82,106.2837]
[1719118154796,6.49,134.89,134.84,6.49]
[1719118155202,22.8818,134.92,134.84,106.49]
[1719118155509,6.49,134.9,134.85,6.49]
[1719118160910,6.49,134.9,134.86,1.12069292]
[1719118162292,27.7523,134.91,134.86,1.12069292]
[1719118162502,7.4138,134.89,134.84,100.0]
[1719118162722,6.49,134.87,134.82,6.49]
[1719118163085,6.49,134.87,134.8,115.9776]
[1719118163086,13.9047,134.87,134.8,115.9776]
[1719118163293,13.9047,134.87,134.82,6.49]
[1719118163703,6.49,134.86,134.8,100.0]
[1719118163906,20.0,134.85,134.79,0.7631863]
[1719118164098,26.49,134.85,134.8,6.49]
[1719118165014,33.9056,134.85,134.8,6.49]
[1719118166227,26.49,134.85,134.8,6.49]
[1719118166434,6.49,134.84,134.79,7.2531863]
[1719118167941,22.1247,134.84,134.79,0.7631863]
[1719118168098,22.1247,134.84,134.79,7.2531863]
[1719118169206,15.6347,134.84,134.8,6.49]
[1719118169415,15.6347,134.84,134.81,6.49]
[1719118174926,15.6347,134.84,134.79,0.7631863]
[1719118175256,15.6347,134.84,134.81,6.49]
[1719118179214,20.0,134.85,134.81,6.49]
[1719118180827,27.4157,134.85,134.81,6.49]
[1719118181730,27.4157,134.85,134.8,100.0]
[1719118181909,27.4157,134.85,134.81,6.49]
[1719118182227,27.4157,134.85,134.8,106.49]
[1719118183132,20.0,134.85,134.81,6.49]
[1719118183937,20.0,134.85,134.82,6.49]
[1719118184110,20.0,134.86,134.83,2.94939641]
[1719118184723,26.49,134.86,134.83,2.94939641]
[1719118185038,26.49,134.86,134.81,6.49]
[1719118185331,33.9052,134.86,134.81,6.49]
[1719118185532,33.9052,134.86,134.8,100.0]
[1719118186014,33.9052,134.86,134.81,6.49]
[1719118187635,26.49,134.86,134.81,6.49]
[1719118196340,6.49,134.85,134.8,106.49]
[1719118196911,6.49,134.85,134.8,100.0]
[1719118197111,6.49,134.85,134.8,106.49]
[1719118197841,6.49,134.85,134.8,100.0]
[1719118201436,16.6586,134.84,134.8,100.0]
[1719118203121,16.6586,134.84,134.8,106.49]
[1719118204242,16.6586,134.84,134.8,100.0]
[1719118204427,16.6586,134.84,134.8,106.49]
[1719118205137,16.6586,134.84,134.8,100.0]
[1719118205317,16.6586,134.84,134.8,106.49]
[1719118212534,16.6586,134.84,134.79,0.7631863]
[1719118212741,13.9069,134.83,134.79,0.7631863]
[1719118212920,33.9069,134.83,134.79,0.7631863]
[1719118213121,6.49,134.82,134.79,0.7631863]
[1719118216053,26.49,134.83,134.79,0.7631863]
[1719118231239,20.0,134.83,134.79,7.2531863]
[1719118231449,20.0,134.83,134.8,6.49]
[1719118237965,27.4168,134.83,134.79,7.2531863]
[1719118238166,7.4173,134.82,134.79,7.2531863]
[1719118238371,7.4173,134.82,134.79,0.7631863]
[1719118239566,20.0,134.83,134.8,6.49]
[1719118240068,20.0,134.83,134.79,7.2531863]
[1719118253284,20.0,134.83,134.79,0.7631863]
[1719118253464,20.0,134.83,134.79,7.2531863]
[1719118261889,16.6586,134.84,134.8,106.49]
[1719118262066,16.6586,134.84,134.82,6.49]
[1719118262474,7.4152,134.86,134.82,6.49]
[1719118262670,15.1882,134.87,134.82,100.0]
[1719118262893,15.1882,134.87,134.84,6.49]
[1719118263067,23.36622666,134.87,134.84,6.49]
[1719118263394,15.1882,134.87,134.84,6.49]
[1719118263565,23.36731497,134.87,134.84,6.49]
[1719118263765,15.1882,134.87,134.84,6.49]
[1719118264161,22.6027,134.87,134.84,6.49]
[1719118264387,22.6027,134.87,134.83,6.49]
[1719118265491,15.1882,134.87,134.83,6.49]
[1719118266596,15.1882,134.87,134.84,6.49]
[1719118268381,22.603,134.87,134.83,6.49]
[1719118268585,29.093,134.87,134.82,6.49]
[1719118269692,21.6782,134.87,134.82,6.49]
[1719118271401,15.1882,134.87,134.82,106.49]
[1719118271896,15.1882,134.87,134.83,6.49]
[1719118273117,15.1882,134.87,134.84,6.49]
[1719118274098,15.1882,134.87,134.83,6.49]
[1719118274673,15.1882,134.87,134.79,16.1890863]
[1719118274674,22.81190765,134.9,134.85,6.49]
[1719118274975,20.0,134.89,134.86,6.49]
[1719118276392,20.0,134.89,134.85,6.49]
[1719118277198,20.0,134.89,134.84,100.0]
[1719118277399,6.49,134.87,134.81,100.0]
[1719118277790,6.49,134.88,134.83,6.49]
[1719118278191,33.9037,134.89,134.83,6.49]
[1719118279403,26.49,134.89,134.83,106.49]
[1719118280692,20.0,134.89,134.83,106.49]
[1719118281009,26.49,134.89,134.83,106.49]
[1719118281389,20.0,134.89,134.83,100.0]
[1719118281604,20.0,134.89,134.83,106.49]
[1719118281793,26.49,134.89,134.83,106.49]
[1719118282708,26.49,134.89,134.84,6.49]
[1719118282897,20.0,134.89,134.84,6.49]
[1719118283084,26.49,134.89,134.84,6.49]
[1719118283712,20.0,134.89,134.85,6.49]
[1719118283920,20.0,134.89,134.86,6.49]
[1719118287415,20.0,134.89,134.85,100.0]
[1719118287606,20.0,134.89,134.86,6.49]
[1719118294015,20.0,134.89,134.85,106.49]
[1719118297519,26.49,134.89,134.83,100.0]
[1719118297734,7.4146,134.87,134.83,100.0]
[1719118297922,7.4146,134.87,134.82,6.49]
[1719118298330,13.9046,134.87,134.82,6.49]
[1719118298533,6.49,134.87,134.82,6.49]
[1719118298729,6.49,134.87,134.83,100.0]
[1719118299050,6.49,134.88,134.83,106.49]
[1719118299343,33.9036,134.89,134.84,6.49]
[1719118300943,33.9036,134.89,134.83,100.0]
[1719118301146,7.414,134.88,134.84,6.49]
[1719118301441,13.904,134.88,134.83,106.49]
[1719118301624,7.414,134.88,134.84,6.49]
[1719118305357,13.904,134.88,134.83,106.49]
[1719118306834,27.4136,134.89,134.83,106.49]
[1719118307058,6.49,134.88,134.83,106.49]
[1719118309959,26.49,134.89,134.84,6.49]
[1719118310258,20.0,134.89,134.85,6.49]
[1719118310953,20.0,134.89,134.86,6.49]
[1719118318244,27.4134,134.89,134.86,6.49]
[1719118320346,20.0,134.89,134.85,106.49]
[1719118321371,27.4135,134.89,134.85,106.49]
[1719118324946,27.4135,134.89,134.86,6.49]
[1719118328577,20.0,134.89,134.86,6.49]
[1719118328750,22.4696,134.9,134.86,6.49]
[1719118334367,28.9596,134.9,134.85,106.49]
[1719118336679,15.0565,134.9,134.85,106.49]
[1719118337255,15.0565,134.9,134.85,100.0]
[1719118337482,15.0565,134.9,134.86,6.49]
[1719118339054,7.4116,134.93,134.88,6.49]
[1719118339378,20.0,134.92,134.88,6.49]
[1719118341176,27.4118,134.92,134.88,6.49]
[1719118341891,7.4124,134.91,134.88,6.49]
[1719118342972,7.4124,134.91,134.89,6.49]
[1719118343370,7.412,134.92,134.89,6.49]
[1719118344392,7.4115,134.93,134.9,6.49]
[1719118345883,7.4115,134.93,134.91,6.49]
[1719118352716,23.2631,134.94,134.91,6.49]
[1719118352997,23.2631,134.94,134.92,6.49]
[1719118358000,23.2634,134.94,134.88,100.0]
[1719118358185,23.2634,134.94,134.91,6.49]
[1719118358705,7.4114,134.93,134.9,6.49]
[1719118359897,7.4114,134.93,134.89,6.49]
[1719118360212,23.2633,134.94,134.89,6.49]
[1719118360890,29.7533,134.94,134.89,6.49]
[1719118361086,23.2633,134.94,134.89,6.49]
[1719118361302,29.7533,134.94,134.89,6.49]
[1719118363601,29.7533,134.94,134.88,106.49]
[1719118365128,6.49,134.93,134.88,106.49]
[1719118366430,6.49,134.93,134.86,106.5445]
[1719118366635,6.49,134.9,134.85,6.49]
[1719118367707,6.49,134.9,134.84,106.49]
[1719118373533,6.49,134.89,134.84,106.49]
[1719118375739,6.49,134.88,134.82,100.0]
[1719118376031,6.49,134.88,134.83,6.49]
[1719118381654,20.0,134.92,134.86,100.0]
[1719118381836,37.65666866,134.93,134.88,6.49]
[1719118382035,23.75526866,134.93,134.88,6.49]
[1719118382230,30.24526866,134.93,134.88,6.49]
[1719118382442,22.5171,134.93,134.87,6.49]
[1719118382628,22.5171,134.93,134.88,6.49]
[1719118382825,16.0271,134.93,134.88,6.49]
[1719118383944,22.5171,134.93,134.88,6.49]
[1719118384642,16.0271,134.93,134.89,6.49]
[1719118385130,23.4384,134.93,134.89,6.49]
[1719118385830,23.4384,134.93,134.86,100.0]
[1719118385831,16.0271,134.93,134.9,6.49]
[1719118386166,22.722,134.96,134.92,6.49]
[1719118386450,20.0,134.95,134.92,6.49]
[1719118390965,20.0,134.95,134.93,6.49]
[1719118391660,27.4102,134.95,134.93,6.49]
[1719118391841,7.4107,134.94,134.87,100.0]
[1719118392153,7.4107,134.94,134.91,6.49]
[1719118392743,7.4107,134.94,134.92,6.49]
[1719118395160,20.0,134.95,134.93,6.49]
[1719118395856,20.0,134.95,134.89,106.49]
[1719118396069,27.4102,134.95,134.89,125.96]
[1719118402776,27.4102,134.95,134.92,6.49]
[1719118413381,20.0,134.95,134.93,6.49]
[1719118420587,7.4101,134.95,134.93,6.49]
[1719118425894,7.4101,134.95,134.92,6.49]
[1719118426215,22.7222,134.96,134.92,6.49]
[1719118426729,7.4112,134.94,134.9,6.49]
[1719118427216,7.4112,134.94,134.91,6.49]
[1719118427992,7.4112,134.94,134.87,100.0]
[1719118428314,7.4112,134.94,134.91,6.49]
[1719118430200,7.4112,134.94,134.87,100.0]
[1719118430398,7.4112,134.94,134.83,100.0]
[1719118430399,13.9029,134.9,134.83,100.0]
[1719118430620,7.4129,134.9,134.86,6.49]
[1719118430921,13.9025,134.91,134.86,6.49]
[1719118431224,20.0,134.9,134.87,6.49]
[1719118431393,20.0,134.9,134.83,100.0]
[1719118431394,20.0,134.9,134.86,6.49]
[1719118431725,20.0,134.9,134.83,100.0]
[1719118431912,20.0,134.9,134.86,6.49]
[1719118434912,20.0,134.9,134.85,6.49]
[1719118435312,26.49,134.9,134.85,6.49]
[1719118436225,33.9029,134.9,134.84,6.49]
[1719118436430,6.49,134.89,134.84,6.49]
[1719118436603,27.4129,134.9,134.84,6.49]
[1719118436910,6.49,134.89,134.84,6.49]
[1719118439967,6.49,134.89,134.83,106.49]
[1719118440768,6.49,134.88,134.83,106.49]
[1719118442448,20.0,134.9,134.83,106.49]
[1719118442626,6.49,134.9,134.85,106.49]
[1719118442830,6.49,134.9,134.85,100.0]
[1719118443360,6.49,134.9,134.85,106.49]
[1719118443753,26.49,134.91,134.85,106.49]
[1719118445955,20.0,134.91,134.85,106.49]
[1719118446148,6.49,134.9,134.85,106.49]
[1719118446361,6.49,134.9,134.86,1.4806318]
[1719118447145,20.0,134.91,134.86,1.4806318]
[1719118447460,6.49,134.9,134.86,1.4806318]
[1719118447629,6.49,134.9,134.85,106.49]
[1719118448060,6.49,134.88,134.83,100.0]
[1719118448259,13.9043,134.88,134.83,106.49]
[1719118448448,6.49,134.87,134.83,106.49]
[1719118448652,6.49,134.87,134.83,100.0]
[1719118449945,6.49,134.88,134.83,106.49]
[1719118450958,13.9043,134.88,134.81,106.5413]
[1719118451163,6.49,134.86,134.81,113.0313]
[1719118455363,6.49,134.87,134.82,6.49]
[1719118461566,13.9046,134.87,134.82,6.49]
[1719118465561,6.49,134.86,134.81,113.0313]
[1719118466764,6.49,134.85,134.81,106.5413]
[1719118467271,6.49,134.85,134.8,16.2206]
[1719118467272,13.9058,134.85,134.8,16.2206]
[1719118467472,13.9058,134.85,134.8,22.7106]
[1719118467968,6.49,134.84,134.8,16.2206]
[1719118472074,7.4148,134.87,134.8,16.2206]
[1719118472269,20.0,134.86,134.8,16.2206]
[1719118472450,6.49,134.84,134.8,16.2206]
[1719118472950,15.9799,134.84,134.79,0.7631863]
[1719118473177,6.49,134.81,134.79,0.7631863]
[1719118473559,15.9799,134.84,134.79,0.7631863]
[1719118473770,20.0,134.83,134.79,0.7631863]
[1719118473966,6.49,134.82,134.79,0.7631863]
[1719118474447,26.49,134.83,134.79,0.7631863]
[1719118477356,6.49,134.82,134.79,0.7631863]
[1719118477556,20.0,134.83,134.79,0.7631863]
[1719118477761,7.4158,134.85,134.79,0.7631863]
[1719118477980,6.49,134.83,134.79,0.7631863]
[1719118479379,27.4162,134.84,134.79,0.7631863]
[1719118479577,6.49,134.83,134.79,0.7631863]
[1719118479783,13.9067,134.83,134.79,0.7631863]
[1719118479972,6.49,134.81,134.79,0.7631863]
[1719118481769,6.49,134.82,134.79,0.7631863]
[1719118483981,7.4167,134.83,134.79,0.7631863]
[1719118484295,6.49,134.82,134.79,0.7631863]
[1719118487684,6.49,134.81,134.79,0.7631863]
[1719118496507,27.4164,134.84,134.79,0.7631863]
[1719118496814,6.49,134.81,134.79,0.7631863]
[1719118497310,27.4164,134.84,134.79,0.7631863]
[1719118497510,6.49,134.82,134.79,0.7631863]
[1719118501007,20.0,134.84,134.79,7.2531863]
[1719118501206,26.49,134.84,134.79,7.2531863]
[1719118501926,20.0,134.84,134.79,7.2531863]
[1719118502129,26.49,134.84,134.79,7.2531863]
[1719118502828,33.9062,134.84,134.79,7.2531863]
[1719118503002,6.49,134.83,134.79,0.7631863]
[1719118503430,13.9067,134.83,134.79,0.7631863]
[1719118503602,7.4167,134.83,134.79,0.7631863]
[1719118503803,13.9074,134.82,134.79,0.7631863]
[1719118504010,6.49,134.81,134.79,0.7631863]
[1719118504211,13.908,134.81,134.79,0.7631863]
[1719118504414,6.49,134.8,134.79,0.7631863]
[1719118505426,6.49,134.81,134.79,0.7631863]
[1719118511331,7.4174,134.82,134.79,0.7631863]
[1719118511332,6.49,134.82,134.79,0.7631863]
[1719118513132,13.9073,134.82,134.79,0.7631863]
[1719118514738,35.13137267,134.84,134.79,0.7631863]
[1719118514948,33.9062,134.84,134.79,2.33025635]
[1719118516336,7.4168,134.83,134.79,2.33025635]
[1719118517042,7.4168,134.83,134.79,0.7631863]
[1719118517541,7.4168,134.83,134.79,7.2531863]
[1719118520341,7.4168,134.83,134.79,0.7631863]
[1719118524039,7.4173,134.82,134.79,0.7631863]
[1719118524242,7.4178,134.81,134.79,0.7631863]
[1719118524737,13.9078,134.81,134.79,0.7631863]
[1719118525318,6.49,134.81,134.79,0.7631863]
[1719118526043,13.9075,134.82,134.79,0.7631863]
[1719118527224,6.49,134.81,134.79,0.7631863]
[1719118530448,6.49,134.82,134.79,0.7631863]
[1719118535350,6.49,134.81,134.79,0.7631863]
[1719118537353,6.49,134.82,134.79,0.7631863]
[1719118539567,8.02773902,134.83,134.79,0.7631863]
[1719118539854,8.02779274,134.83,134.79,7.2531863]
[1719118542348,15.44449274,134.83,134.79,7.2531863]
[1719118542962,21.93444435,134.83,134.79,0.7631863]
[1719118543371,6.49,134.82,134.79,0.7631863]
[1719118543945,6.49,134.81,134.79,0.7631863]
[1719118550149,6.49,134.8,134.79,0.7631863]
[1719118553879,6.49,134.81,134.79,0.7631863]
[1719118556665,13.908,134.81,134.79,0.7631863]
[1719118559392,7.4183,134.8,134.79,0.7631863]
[1719118559773,13.9083,134.8,134.79,0.7631863]
[1719118562390,13.908,134.81,134.79,0.7631863]
[1719118564196,7.4183,134.8,134.79,0.7631863]
[1719118564897,7.418,134.81,134.79,0.7631863]
[1719118567394,7.4183,134.8,134.79,0.7631863]
[1719118570900,13.9081,134.81,134.79,0.7631863]
[1719118572601,13.9083,134.8,134.79,0.7631863]
[1719118577214,6.49,134.8,134.79,0.7631863]
[1719118578231,7.4183,134.8,134.79,0.7631863]
[1719118578400,6.49,134.82,134.79,0.7631863]
[1719118578602,20.0,134.81,134.79,0.7631863]
[1719118580704,27.4178,134.81,134.79,0.7631863]
[1719118583309,14.21665016,134.83,134.79,0.7631863]
[1719118583516,7.72665016,134.83,134.79,0.7631863]
[1719118583810,7.4163,134.84,134.79,23.8994863]
[1719118584015,7.4163,134.84,134.8,1.481401]
[1719118585012,13.9063,134.84,134.8,1.481401]
[1719118585413,21.95234471,134.84,134.8,1.481401]
[1719118585639,13.9063,134.84,134.8,1.481401]
[1719118586023,7.4168,134.83,134.8,1.481401]
[1719118591826,7.4168,134.83,134.79,23.8994863]
[1719118592032,7.4175,134.82,134.79,17.4094863]
[1719118592531,13.9075,134.82,134.79,17.4094863]
[1719118594252,6.49,134.82,134.79,17.4094863]
[1719118595554,6.49,134.82,134.79,0.7631863]
[1719118599359,6.49,134.83,134.79,0.7631863]
[1719118603353,6.49,134.82,134.79,0.7631863]
[1719118604347,6.49,134.81,134.79,0.7631863]
[1719118609569,6.49,134.8,134.79,0.7631863]
[1719118614979,15.15272253,134.82,134.79,0.7631863]
[1719118615184,26.49,134.81,134.79,0.7631863]
[1719118615681,6.49,134.8,134.79,0.7631863]
[1719118616357,20.0,134.81,134.79,0.7631863]
[1719118616554,26.49,134.81,134.79,0.7631863]
[1719118620374,20.0,134.81,134.79,0.7631863]
[1719118623779,33.9079,134.81,134.79,0.7631863]
[1719118627579,13.9083,134.8,134.79,0.7631863]
[1719118630402,6.49,134.8,134.79,0.7631863]
[1719118635402,20.0,134.81,134.79,0.7631863]
[1719118635606,26.49,134.81,134.79,0.7631863]
[1719118636415,20.0,134.81,134.79,0.7631863]
[1719118637211,7.4175,134.82,134.79,0.7631863]